Cogmind - Beta 13 @@@ ROGUE MODE // 2024.07.14 @ 17:14:52 Player: CONNOR_M Result: Destroyed by 0B-7CF(R) with Subdweller Beam Cannon Performance ------------- Evolutions (0) 0 Regions Visited (3) 600 Robots Destroyed (30) 150 Value Destroyed (540) 540 Prototype IDs (0) 0 Alien Tech Used (0) 0 Bonus (-40) -40 TOTAL SCORE: 1250 Bonus ------- Follower Combat Kills 25 Friendly Fire -65 Cogmind --------- Core Integrity 0/250 Matter 290/300 Energy 100/100 System Corruption 1% Temperature Cool (9) Movement Rolling (175) Ox5 Location -10/Subcaves Parts ------- > --- POWER (1) -------- (None) > --- PROPULSION (2) --- Compact Wheel > --- UTILITY (2) ------ Huge Storage Unit > --- WEAPON (2) ------- Small Laser > --- INVENTORY (25) --- Light Treads Light Treads Spiked Treads Small Matter Pod (50) Sensor Array Signal Interpreter Targeting Computer Scrap Shield Battle Rifle Heavy Battle Rifle Stasis Trap (100%) Stasis Trap (100%) Stasis Trap (100%) Scrap Shield Fragment (46) Peak State ------------ > --- POWER ------------ Ion Engine > --- PROPULSION ------- Wheel Wheel > --- UTILITY ---------- Huge Storage Unit Propulsion Shielding > --- WEAPON ----------- Rocket Launcher Mining Laser > --- INVENTORY -------- Light Ion Engine Light Treads Light Treads Spiked Treads Compact Wheel Small Matter Pod Sensor Array Signal Interpreter Targeting Computer Scrap Shield EM Pulse Gun Small Laser Barrage Gun Stasis Trap Stasis Trap Stasis Trap Stasis Trap [Rating: 10] Favorites ----------- Power Ion Engine Engine Ion Engine Propulsion Wheel Treads Light Treads Wheel Wheel Utility Huge Storage Unit Device Seismic Detector Storage Huge Storage Unit Protection Propulsion Shielding Weapon EM Pulse Gun Energy Gun EM Pulse Gun Ballistic Gun Barrage Gun Launcher Rocket Launcher Special Weapon Mining Laser Build | -11 -10 -10 -10 ------- Run | Yrd Mat Min Sub Slots Evolved . | . . . . Power . | . . . . Propulsion . | . . . . Utility . | . . . . Weapon . | . . . . Parts Attached 42 | 12 14 1 15 Power 5 | 2 . . 3 Engine 5 | 2 . . 3 Core . | . . . . Reactor . | . . . . Propulsion 13 | 3 6 . 4 Treads 4 | 2 1 . 1 Leg . | . . . . Wheel 9 | 1 5 . 3 Hover . | . . . . Flight . | . . . . Utility 4 | 2 2 . . Device 1 | 1 . . . Storage 2 | 1 1 . . Processor . | . . . . Hackware . | . . . . Protection 1 | . 1 . . Artifact . | . . . . Weapon 20 | 5 6 1 8 Energy Gun 13 | 5 4 . 4 Energy Cannon . | . . . . Ballistic Gun 1 | . . . 1 Ballistic Cannon . | . . . . Launcher 4 | . 2 . 2 Special Weapon 2 | . . 1 1 Impact Weapon . | . . . . Slashing Weapon . | . . . . Piercing Weapon . | . . . . Special Melee Weapon . | . . . . Unidentified Prototypes . | . . . . Parts Lost 14 | . 2 . 12 Power 2 | . . . 2 Propulsion 4 | . . . 4 Utility 2 | . 1 . 1 Weapon 6 | . 1 . 5 Highest Loss Streak 6 | . 1 . 6 To Critical Strikes . | . . . . Average Slot Usage (%) 88 | . 90 85 88 Engine 5 | . 7 . 10 Treads 6 | . 16 . . Wheel 20 | . 10 28 23 Device 3 | . 9 . . Storage 14 | . 14 14 14 Protection 10 | . 4 14 13 Energy Gun 16 | . 25 14 7 Launcher 2 | . . . 7 Special Weapon 7 | . . 14 9 Naked Turns . | . . . . Heaviest Build 91 | 15 86 84 91 Greatest Support 40 | 20 40 20 30 Greatest Overweight (x) 9 | 4 4 4 9 Average Overweight (x) 3 | . 1 4 4 Largest Inventory Capacity 25 | 8 25 25 25 Average Capacity 19 | 7 14 25 25 Most Carried 19 | 5 11 16 19 Average Carried 10 | 3 7 12 17 Final Capacity 25 | 8 25 25 25 Final Carried 16 | 5 11 16 15 Class Distribution -------------------- 100% | Mutant Dominant Class ---------------- Mutant | -10/Materials Mutant | -10/Mines Mutant | -10/Subcaves Resources | -11 -10 -10 -10 ----------- Run | Yrd Mat Min Sub Matter Collected 765 | 327 169 . 269 Remotely . | . . . . Salvage Created 705 | 245 400 . 60 Parts 55 | 20 27 . 8 Haulers Intercepted . | . . . . Recyclers Shooed 1 | 1 . . . Parts Field Recycled . | . . . . Retrieved Matter . | . . . . Parts Self-Destructed 12 | . . . 12 Prevented . | . . . . Kills | -11 -10 -10 -10 ------- Run | Yrd Mat Min Sub Combat Hostiles Destroyed 15 | . 9 . 6 Guns 5 | . 4 . 1 AOE 10 | . 5 . 5 Classes Destroyed 8 | 3 3 . 2 Worker 4 | 2 2 . . Tunneler 5 | 5 . . . Recycler 2 | 1 1 . . Turret 2 | . . . 2 Watcher 2 | . 2 . . Swarmer 7 | . 3 . 4 Grunt 6 | . 6 . . Subdweller 2 | . . . 2 Best Kill Streak 6 | 3 4 . 6 Combat Bots Only 4 | . 3 . 4 Max Kills in Single Turn 2 | 2 2 . 2 Gunslinging . | . . . . Exploded 2 | . 2 . 2 Melee . | . . . . Uniques/NPCs Destroyed . | . . . . Combat | -11 -10 -10 -10 -------- Run | Yrd Mat Min Sub Hostile Shots Fired 88 | . 43 . 45 Missed 19 | . 9 . 10 Damage Taken 1280 | 18 444 3 815 Core 257 | . 54 3 200 Absorbed by Shields . | . . . . Redirected to Shielding 56 | . 6 . 50 Regen/Repaired (Parts) 31 | . 31 . . Core Remaining (%) 100 | 100 . . . Volleys Fired 76 | 20 30 4 22 Largest 2 | 2 2 2 2 Hottest 140 | 80 80 140 133 Shots Fired 111 | 33 46 7 25 Gun 89 | 33 42 4 10 Cannon . | . . . . Launcher 15 | . 4 . 11 Special 7 | . . 3 4 Kinetic 5 | . . . 5 Thermal 16 | 7 . 3 6 Explosive 15 | . 4 . 11 Electromagnetic 75 | 26 42 4 3 Robot Hit Streak 6 | 3 6 2 6 Robot Miss Streak 3 | 3 2 3 1 Penetration Max . | . . . . Secondary Targets . | . . . . Shots Hit Robots 59 | 15 27 2 15 Core Hits 45 | 9 21 1 14 Critical Kills . | . . . . Critical Parts Destroyed . | . . . . Critical Strikes . | . . . . Melee Attacks . | . . . . Impact . | . . . . Slashing . | . . . . Piercing . | . . . . Sneak Attacks . | . . . . Combat Hostiles . | . . . . Follow-up Attacks . | . . . . Damage Inflicted 2370 | 315 1136 44 875 Guns 740 | 230 425 13 72 Cannons . | . . . . Explosions 1596 | 82 711 . 803 Melee . | . . . . Ramming 10 | 3 . 7 . Kinetic 49 | . . . 49 Thermal 353 | 115 191 24 23 Explosive 1323 | . 520 . 803 Electromagnetic 635 | 197 425 13 . Impact . | . . . . Slashing . | . . . . Piercing . | . . . . Highest Corruption 1 | . 1 1 1 Average Corruption 1 | . 1 1 1 Corruption Purged . | . . . . Corruption Blocked . | . . . . Effects 14 | . 3 7 4 Message Errors 7 | . 1 4 2 Matter Fused 2 | . 1 1 . Heat Flow Errors 1 | . . . 1 Parts Fused 1 | . . . 1 Data Loss (minor) 3 | . 1 2 . Overload Shots . | . . . . Overflow Damage 69 | . 17 . 52 Projectiles . | . . . . Explosions 69 | . 17 . 52 Melee . | . . . . Knockbacks . | . . . . Impact . | . . . . Kinetic . | . . . . Secondary . | . . . . Self-Inflicted Damage 223 | 18 93 3 109 Shots 8 | 1 2 . 5 Rammed 2 | 1 . 1 . Targets Rammed 2 | 1 . 1 . Kicked . | . . . . Crushed . | . . . . Highest Temperature 174 | 54 174 15 138 Average Temperature 39 | 24 57 9 78 Received Heat Transfer 222 | . 141 . 81 Siege Activations . | . . . . Robots Corrupted . | . . . . Combat Hostiles . | . . . . Parts Fried 2 | . 2 . . Impact Corruptions . | . . . . Robots Melted . | . . . . Combat Hostiles . | . . . . Parts Melted 1 | . 1 . . Heat Transferred 425 | 125 200 50 50 Parts Sabotaged . | . . . . Parts Stolen . | . . . . Parts Stripped . | . . . . Power Chain Reactions 5 | 2 3 . . Alert | -11 -10 -10 -10 ------- Run | Yrd Mat Min Sub Peak Influence 299 | 40 299 117 . Initial 116 | . 26 116 . Average 73 | 17 109 64 . Maximum Alert Level 1 | . 1 . . Low Security (%) 93 | 100 84 100 . Level 1 6 | . 15 . . Level 2 . | . . . . Level 3 . | . . . . Level 4 . | . . . . Level 5 . | . . . . High Security . | . . . . Max Security . | . . . . Squads Dispatched 1 | . 1 . . Investigation . | . . . . Extermination . | . . . . Reinforcement 1 | . 1 . . Assault . | . . . . Garrison . | . . . . Intercept . | . . . . Searches Triggered . | . . . . Construction Impeded . | . . . . Haulers Reinforced . | . . . . Active Scanning Responses . | . . . . Cargo Convoy Interrupts . | . . . . Stealth | -11 -10 -10 -10 --------- Run | Yrd Mat Min Sub Distress Signals 1 | . 1 . . Communications Jammed . | . . . . Distress Signals . | . . . . Times Spotted 32 | . 13 . 19 Peak Tracking Total 6 | . 4 . 6 Tactical Retreats 2 | . 1 . 1 Traps | -11 -10 -10 -10 ------- Run | Yrd Mat Min Sub Traps Triggered 2 | . 2 . . Indirectly . | . . . . Trap Hack Attempts . | . . . . Triggered . | . . . . Disarmed . | . . . . Reprogrammed . | . . . . Reused 1 | . . . 1 Traps Extracted . | . . . . Installed 1 | . . . 1 Triggered . | . . . . Most Traps Carried 4 | . . 4 4 Machines | -11 -10 -10 -10 ---------- Run | Yrd Mat Min Sub Machines Disabled 6 | . 3 . 3 Max in Single Turn 2 | . 2 . 2 Machines Repaired . | . . . . Machines Dismantled . | . . . . Machines Sabotaged . | . . . . Overloaded Fab Kills . | . . . . Hacking | -11 -10 -10 -10 --------- Run | Yrd Mat Min Sub Machines Accessed 3 | . 3 . . Terminals 2 | . 2 . . Fabricators . | . . . . Repair Stations 1 | . 1 . . Recycling Units . | . . . . Scanalyzers . | . . . . Garrison Access . | . . . . Total Hacks 10 | . 10 . . Successful 3 | . 3 . . Failed 7 | . 7 . . Catastrophic 1 | . 1 . . Database Lockouts . | . . . . Manual 5 | . 5 . . Terminals 7 | . 7 . . Fabricators . | . . . . Repair Stations 3 | . 3 . . Recycling Units . | . . . . Scanalyzers . | . . . . Garrison Access . | . . . . Terminal Hacks 1 | . 1 . . Terminal Index 1 | . 1 . . Fabricator Hacks . | . . . . Repair Station Hacks 2 | . 2 . . Scan Component 1 | . 1 . . Repair 1 | . 1 . . Recycling Unit Hacks . | . . . . Scanalyzer . | . . . . Garrison Access Hacks . | . . . . Unauthorized Hacks . | . . . . Terminals . | . . . . Fabricators . | . . . . Repair Stations . | . . . . Recycling Units . | . . . . Scanalyzers . | . . . . Garrison Access . | . . . . Data Cores Recovered . | . . . . Used . | . . . . Hacking Detections 3 | . 3 . . Full Trace Events . | . . . . Feedback Events . | . . . . Feedback Blocked . | . . . . Robot Schematics Acquired . | . . . . Robots Built . | . . . . Authchips . | . . . . Time . | . . . . Total Robot Build Rating . | . . . . Part Schematics Acquired . | . . . . Parts Built . | . . . . Authchips . | . . . . Time . | . . . . Total Part Build Rating . | . . . . Parts Repaired 1 | . 1 . . Time 26 | . 26 . . Parts Recycled . | . . . . Recycled Matter . | . . . . Retrieved Matter . | . . . . Retrieved Components . | . . . . Parts Scanalyzed . | . . . . Part Schematics Acquired . | . . . . Parts Damaged . | . . . . Bothacking | -11 -10 -10 -10 ------------ Run | Yrd Mat Min Sub Used RIF Installer . | . . . . Robots Hacked . | . . . . Non-combat . | . . . . Combat . | . . . . Robot Hacks Applied . | . . . . Relay Couplers Released . | . . . . Fabnet Peak Effective % . | . . . . Robots Rewired . | . . . . Allies Hacked . | . . . . Hacks Repelled . | . . . . Allies | -11 -10 -10 -10 -------- Run | Yrd Mat Min Sub Total Allies 3 | . . 3 . Largest Group 3 | . . 3 3 Highest-Rated Group 40 | . . 40 40 Highest-Rated Ally 16 | . . 16 16 Total Orders . | . . . . Ally Attacks 8 | . . . 8 Total Damage 40 | . . . 40 Kills 1 | . . . 1 Allies Corrupted . | . . . . Allies Melted . | . . . . Intel | -11 -10 -10 -10 ------- Run | Yrd Mat Min Sub Robot Analysis Total . | . . . . Derelict Logs Recovered . | . . . . Drone Launches . | . . . . Drone Recoveries . | . . . . Exploration | -11 -10 -10 -10 ------------- Run | Yrd Mat Min Sub Turns Passed 2478 | 377 763 729 609 Spaces Moved 1426 | 190 409 491 336 Core 30 | 30 . . . Treads 393 | 158 235 . . Legs . | . . . . Wheels 1003 | 2 174 491 336 Hover . | . . . . Flight . | . . . . Fastest Speed 50 | 50 135 140 119 Average Speed 149 | 158 150 140 155 Slowest Speed 250 | 250 160 140 215 Overloaded Moves . | . . . . Propulsion Burnouts . | . . . . Robots Hopped . | . . . . Cave-ins Triggered . | . . . . Exploration Rate (%) 41 | 11 69 66 18 Regions Visited 3 Branch Regions 2 Pre-discovered Areas . | . . . . Known Exits Taken . | . . . . Unknown Exits Taken 3 | 1 1 1 . Scrap Searched 8 | . . . 8 Spaces Dug 1 | . . 1 . Terrain Destroyed 129 | 8 44 1 76 Melee . | . . . . Projectile 1 | . . 1 . AOE 128 | 8 44 . 76 Terrain Rammed . | . . . . Walls Destroyed . | . . . . Machines Disabled . | . . . . Actions | -11 -10 -10 -10 --------- Run | Yrd Mat Min Sub Total 1634 | 227 504 519 384 Wait 64 | 1 43 18 2 Move 1423 | 189 408 490 336 Hop . | . . . . Pick Up 21 | 4 6 5 6 Fast Attach 13 | 7 5 . 1 Attach 11 | . 2 . 9 Detach 2 | . 1 . 1 Swap 18 | 5 7 1 5 Drop 3 | . 2 . 1 Fire 76 | 20 30 4 22 Melee . | . . . . Ram 1 | . . 1 . Kick . | . . . . Crush 1 | 1 . . . Escape Stasis . | . . . . Rewire . | . . . . Trap 1 | . . . 1 Miscellaneous . | . . . . Route ------- -11/Scrapyard -10/Materials (discovered 2 exits: [*Mat] / [*Min]) -10/Mines -10/Subcaves (discovered 2 exits: [*Mat] / [*Rec]) History --------- Turn | Location | Event 4 | -11/Scrapyard | Discovered new exit (range 16) 378 | -11/Scrapyard | Entered Materials 379 | -10/Materials | Build established: Mutant 602 | -10/Materials | Repaired EM Pulse Gun 669 | -10/Materials | Discovered new exit (range 10) 1100 | -10/Materials | Discovered new exit (range 15) 1141 | -10/Materials | Entered Mines 1255 | -10/Mines | Received a Rocket Launcher from a helpful Derelict 1484 | -10/Mines | Assisted by bots powering up and referring to "LRC-V3" 1502 | -10/Mines | Assembled infested the area 1655 | -10/Mines | Found a hidden stash of uninstalled traps 1862 | -10/Mines | Discovered new exit (range 6) 1870 | -10/Mines | Entered Subcaves 1870 | -10/Subcaves | Accompanied by 3 allies 1951 | -10/Subcaves | Shifting Twisted Machinery released Spk. Treads 2057 | -10/Subcaves | Discovered new exit (range 15) 2072 | -10/Subcaves | Disturbed a concealed Subdweller 2107 | -10/Subcaves | Lost 3 allies 2254 | -10/Subcaves | A swath of the cavern ceiling suddenly collapsed 2326 | -10/Subcaves | Discovered new exit (range 7) 2361 | -10/Subcaves | Disturbed a concealed Subdweller 2389 | -10/Subcaves | Core integrity fell below 50% 2421 | -10/Subcaves | Lost 6 parts (1p1n4w) 2466 | -10/Subcaves | Core integrity fell below 20% 2479 | -10/Subcaves | Destroyed by 0B-7CF(R) with Subdweller Beam Cannon Last Messages --------------- 02409_ Found 29 Matter. 02410_ Acquired 29 matter. 02411_ Acquired Battle Rifle. 02414_ Searching scrap... 02414_ Found Sub. Laser. 02414_ Found 23 Matter. 02440_ Propulsion Shielding destroyed. 02440_ Sub. Monowheel destroyed. 02453_ Dropped Stasis Trap. 02453_ Installed Stasis Trap. 02454_ Lgt. Ion Engine destroyed. 02464_ Wheel destroyed. 02469_ Field strength at 80. 02470_ Field strength at 70. 02472_ Field strength at 50. 02473_ Field strength at 40. 02474_ Field strength at 30. 02475_ Field strength at 20. 02476_ Field strength at 10. 02477_ Stasis field depleted. Map ----- +----------------------------------------------------+ | | | | | | | | | | | | | ?????????????????????????????????????????????????? | | ?????????????????????????????????????????????????? | | ?????????????????????????????????????????????????? | | ?????????????????????????????????????????????????? | | ?????????????????????????????????????????????????? | | ?????????????????????????????????????????????????? | | ?????????????????????????????????????????????????? | | ?????????????????????????????????????????????????? | | ?????????????????????????????????????????????????? | | ?????????????????????????????????????????????????? | | ?????????????????????####????????????????????????? | | ?????????????????##### #????????????????????????? | | ?????????????????# [ #????????????????????????? | | ??????????????????# [ %#????????????????????????? | | ??????????????????# = #####????????####????????? | | ?????????????###### [% ##???##### ###??????? | | ???????####### # # #???# ###????? | | ?????### ## ! * #????# "#????? | | ????## < ##??## ####????? | | ????# ## @ #### ###"""#????? | | ?????# ## # ##### # #?#"""##???? | | ?###?# # ### # ##### ###"#"##"#??? | | ?# ## R R ##???## ;##""#""##### | | ## #?????### ######;##""##"#### | | # ### # # #???####?????##"#? ##"#"## | | ######## ##?????????????##??? ##"#"" | | #?????## ##???????????????????? "#""# | | ### ######???????###????????????????????####"## | | ??## #?????????????????????????????????????##"#" | | ???# #??????????????????????????????????????#""# | | ???# ##??????????????????????????????????????#### | | ??? ?????????????????????????????????????????#"# | | ?? ????????????????????????????????????????###" | | ? ????????????????????????????????????????# " | | ????????????????????????????????????????#### | | # ???????????????????????????????????????????? | | # #???????????????????????????????????????????# | | # ????????????????????????????????????????????# | | ## ????????????????????????????????????????????# | | ?# ????????????????????????????????????????????# | | ?? ?????????????????????????????????????????????# | | ?????????????????????????????????????????????????? | | ?????????????????????????????????????????????????? | | ?????????????????????????????????????????????????? | +----------------------------------------------------+ Best States ------------- Heat Dissipation 25 Energy Generation 10 Energy Capacity 250 Matter Stores 300 Matter Capacity 300 Sight Range 16 Terrain Scan Density 10 Propulsion Shielding 33 Evasion (%) 50 Recoil Reduction 2 Item Schematics ----------------- None Robot Schematics ------------------ None Fabricated ------------ Nothing Alien Tech Used ----------------- None Achievements -------------- None Challenges ------------ None Game ------ Seed MyomerGhostSubcomponent Manual? 0 Play Time 00:21:51 Cumulative 51.3 hours Start 2024.07.14 @ 16:55:08 End 2024.07.14 @ 17:14:52 Sessions 1 Manual Loads 0 Difficulty Rogue Special Mode None Game No. 79 Rogue 79 Adventurer 0 Explorer 0 Win Type - Total 0 Types 0/0/0/0/0/0/0/0/0 Lore% 29 Gallery% 33 Achievement% 31 Wizard Run 0 Options --------- Layout 0 ASCII 0 Keyboard 0 Movement Arrows Keybinds 0 Fullscreen 2 Font 18/SmallcapsGlow Map View 76x50 Zoom Use 0% Tactical HUD 1 Map Filters NONE Filters NONE Steam 1 RUN: 03dfd93d-70c4-4dc9-a5a0-ac487efd510e